Workbook

Sheet Лист1
I1: "Утверждаю"
A2: 25.12.2015г | I2: Руководитель дошкольной образовательной
I3: организации
L4: ____________________
C8: Примерное десятидневное цикличное
E9: МЕНЮ
D10: для организации питания детей в дошкольных учреждениях
G11: с 11-12- часовым пребыванием
F12: от 3 до 7 лет
A13: День 1 - ый
A14: Наименование блюд и | D14: Масса | E14: Кол - во | F14: Кол - во | G14: Пищевые вещества | J14: Энергетическая | K14: Витамины | N14: Минеральные
A15: продуктов | D15: порции | E15: (в гр ) | F15: (в гр ) | J15: ценность | L15: мг | N15: вещества
E16: брутто | F16: нетто | G16: белки | H16: жиры | I16: угл-ды | J16: Ккал | K16: В1 | L16: В2 | M16: С | N16: Са | O16: Fe
B17: ЗАВТРАК
A18: Каша манная молочная с маслом | D18: 205 | G18: 4.50 | H18: 7.01 | I18: 21.60 | J18: 167 | K18: 0.06 | L18: 0.06 | M18: 0.22 | N18: 125.00 | O18: 0.42
B19: Крупа манная | E19: 30 | F19: 30
B20: Молоко | E20: 160 | F20: 160
B21: Сахар | E21: 5 | F21: 5
B22: Соль | E22: 1 | F22: 1
B23: Масло сливочное | E23: 5 | F23: 5
A24: Кофейный напиток с молоком | D24: 180 | G24: 1.46 | H24: 1.61 | I24: 14.33 | J24: 78 | K24: 0.01 | L24: 0.14 | M24: 0.23 | N24: 48.00 | O24: 0.09
B25: Кофейный напиток | E25: 1.2 | F25: 1.2
B26: Сахар | E26: 12 | F26: 12
B27: Молоко | E27: 90 | F27: 90
B28: Вода | E28: 100 | F28: 100
A29: Бутерброд с маслом сливочным | D29: 40/5 | G29: 3.11 | H29: 5.4 | I29: 19.9 | J29: 135 | K29: 0.05 | L29: 0.06 | N29: 8.5
B30: Батон нарезной | E30: 40 | F30: 40
B31: Масло сливочное | E31: 5 | F31: 5
A32: Итого: | G32: =SUM(G18:G31) -> 9.07 | H32: 14.02 | I32: 55.86 | J32: 380 | K32: 0.12 | L32: 0.26 | M32: 0.45 | N32: 181.50 | O32: 0.51
B33: 2 - ой ЗАВТРАК
A34: Сок фруктовый | D34: 100 | E34: 100 | F34: 100 | G34: 0.50 | I34: 10.60 | J34: 44 | K34: 0.01 | L34: 0.02 | M34: 2.00 | N34: 7.00 | O34: 1.40
A35: Итого: | G35: =SUM(G34:G34) -> 0.50 | H35: 0.00 | I35: 10.60 | J35: 44 | K35: 0.01 | L35: 0.02 | M35: 2.00 | N35: 7.00 | O35: 1.40
B38: ОБЕД
A39: Щи со свежей капустой,картофелем, з/горош. | D39: 250/16/10 | G39: 6.12 | H39: 6.33 | I39: 7.40 | J39: 109 | K39: 0.02 | L39: 0.03 | M39: 10.40 | N39: 39.60 | O39: 0.80
A40: с цыплятами,со сметаной
B41: Цыплята бройлеры | E41: 32.3 | F41: 21.0
B42: Капуста свежая | E42: 100 | F42: 80
B43: Картофель | E43: 30 | F43: 21
B44: Морковь | E44: 20 | F44: 15
B45: Лук репчатый | E45: 17.85 | F45: 15
B46: Зелёный горошек | E46: 15.4 | F46: 10
B47: Томатная паста | E47: 1 | F47: 1
B48: Масло растительное | E48: 4 | F48: 4
B49: Сметана | E49: 10 | F49: 10
B50: Соль | E50: 1.5 | F50: 1.5
B51: Вода | E51: 200 | F51: 200
A52: Запеканка картофельная с мясом | D52: 160/5 | G52: 13.86 | H52: 20.48 | I52: 20.56 | J52: 324 | K52: 0.12 | L52: 0.12 | M52: 3.04 | N52: 22.64 | O52: 2.85
A53: маслом | B53: Говядина | E53: 66 | F53: 66
B54: Масло сливочное | E54: 3 | F54: 3
B55: Картофель | E55: 207.4 | F55: 145
B56: Лук репчатый | E56: 23.8 | F56: 20
B57: Масло сливочное | E57: 3 | F57: 3
B58: Сухари панировочные | E58: 7.5 | F58: 7.5
B59: Соль | E59: 2 | F59: 2
B60: Масло сливочное | E60: 5 | F60: 5
A61: Морковь припущенная (протёртая)с сахаром | D61: 80/7 | G61: 1.20 | H61: 0.08 | I61: 14.00 | J61: 62 | K61: 0.04 | L61: 0.05 | M61: 3.04 | N61: 21.60 | O61: 0.48
B62: Морковь | E62: 109 | F62: 80
B63: сахар | E63: 7 | F63: 7
A64: Компот из урюка | D64: 180 | G64: 0.94 | H64: 0.06 | I64: 18.78 | J64: 80 | K64: 0.02 | L64: 0.02 | M64: 0.80 | N64: 33.20 | O64: 0.64
B65: урюк | E65: 20.0 | F65: 20.0
B66: Сахар | E66: 11.0 | F66: 11.0
A67: Хлеб Сельский | D67: 50 | E67: 50 | F67: 50 | G67: 3.30 | H67: 0.60 | I67: 17.50 | J67: 102 | K67: 0.06 | L67: 0.04 | N67: 11.70 | O67: 1.30
A68: Итого: | G68: =SUM(G39:G67) -> 25.42 | H68: 27.55 | I68: 78.24 | J68: 677 | K68: 0.26 | L68: 0.26 | M68: 17.28 | N68: 128.74 | O68: 6.07
B69: ПОЛДНИК
A70: Молоко кипячёное | D70: 150 | E70: 158 | F70: 150 | G70: 4.35 | H70: 3.75 | I70: 7.20 | J70: 81 | K70: 0.06 | L70: 0.23 | M70: 1.95 | N70: 180.00 | O70: 0.15
A71: Итого: | G71: =SUM(G70:G70) -> 4.35 | H71: 3.75 | I71: 7.20 | J71: 81 | K71: 0.06 | L71: 0.23 | M71: 1.95 | N71: 180.00 | O71: 0.15
B72: УЖИН
A73: Фрукты свежие | D73: 100 | E73: 114 | F73: 100 | G73: 0.40 | H73: 0.40 | I73: 9.80 | J73: 47 | K73: 0.03 | L73: 0.04 | M73: 10.00 | N73: 16.00 | O73: 2.20
A74: Суфле из творога с повидлом | D74: 130/20 | G74: 24.25 | H74: 7.22 | I74: 29.38 | J74: 281 | K74: 0.10 | L74: 0.78 | M74: 0.51 | N74: 244.60 | O74: 0.73
B75: Творог | E75: 130 | F75: 130 | P75: 0
B76: Мука пшеничная | E76: 10 | F76: 10
B77: Яйца | E77: 8 | F77: 8
B78: Сахар | E78: 12 | F78: 12
B79: Молоко | E79: 20 | F79: 20
B80: Сметана | E80: 10 | F80: 10
B81: Масло растительное | E81: 1.2 | F81: 1.2
B82: Повидло фруктовое | E82: 20 | F82: 20
A83: Чай с сахаром | D83: 180 | I83: 10.00 | J83: 40 | N83: 0.30 | O83: 0.03
B84: Заварка | E84: 0.6 | F84: 0.6
B85: Сахар | E85: 10 | F85: 10
A86: Хлеб белый 1с | D86: 40 | E86: 40 | F86: 40 | G86: 3.10 | H86: 1.20 | I86: 19.90 | J86: 98 | K86: 0.05 | L86: 0.04 | M86: 0.00 | N86: 8.00
A87: Итого: | G87: =SUM(G73:G86) -> 27.75 | H87: 8.82 | I87: 69.08 | J87: 466 | K87: 0.18 | L87: 0.86 | M87: 10.51 | N87: 268.90 | O87: 2.96
A91: Итого: | G91: =SUM(G89:G90) -> 0.00 | H91: 0.00 | I91: 0.00 | J91: 0 | K91: 0.00 | L91: 0.00 | M91: 0.00 | N91: 0.00 | O91: 0.00 | P91: =SUM(P79:P90) -> 0
A92: ВСЕГО: | G92: =SUM(G91,G87,G71,G68,G35,G32) -> 67.09 | H92: 54.14 | I92: 220.98 | J92: 1648 | K92: 0.63 | L92: 1.63 | M92: 32.19 | N92: 766.14 | O92: 11.09
A95: День 2 - ой
A96: Наименование блюд и | D96: Масса | E96: Кол - во | F96: Кол - во | G96: Пищевые вещества | J96: Энергетическая | K96: Витамины | N96: Минеральные
A97: продуктов | D97: порции | E97: (в гр ) | F97: (в гр ) | J97: ценность | L97: мг | N97: вещества
E98: брутто | F98: нетто | G98: белки | H98: жиры | I98: угл-ды | J98: Ккал | K98: В1 | L98: В2 | M98: С | N98: Са | O98: Fe
B99: ЗАВТРАК
A100: Яйцо варёное вкрутую | D100: 1/2шт. | E100: 20 | F100: 20 | G100: 3.05 | H100: 2.76 | I100: 0.17 | J100: 38 | K100: 0.015 | L100: 0.015 | N100: 13.2 | O100: 0.6
A101: Каша Геркулесовая молочная с маслом | D101: 205 | G101: 5 | H101: 6.125 | I101: 20 | J101: 155 | K101: 0.1375 | L101: 0.1375 | M101: 0.225 | N101: 138.75 | O101: 1.1625
B102: Крупа Геркулесовая | E102: 30 | F102: 30
B103: Молоко | E103: 160 | F103: 160
B104: Сахар | E104: 5 | F104: 5
B105: Соль | E105: 1 | F105: 1
B106: Масло сливочное | E106: 5 | F106: 5
A107: Какао с молоком | D107: 180 | G107: 2.9 | H107: 3.1 | I107: 16.33 | J107: 106 | K107: 0.03 | L107: 0.2 | M107: 0.47 | N107: 99.54 | O107: 0.81
B108: Какао порошок | E108: 1.2 | F108: 1.2
B109: Сахар | E109: 12 | F109: 12
B110: Молоко | E110: 90 | F110: 90
B111: Вода | E111: 100 | F111: 100
A112: Бутерброд с сыром, маслом | D112: 40/9/5 | G112: 5.49 | H112: 7.78 | I112: 22.41 | J112: 167 | K112: 0.15 | L112: 0.26 | M112: 0.10 | N112: 20.00 | O112: 0.27
B113: Батон нарезной | E113: 40 | F113: 40
B114: Сыр | E114: 9.18 | F114: 9
B115: Масло сливочное | E115: 5 | F115: 5
A116: Итого: | G116: =SUM(G100:G115) -> 16.44 | H116: 19.765 | I116: 58.91 | J116: 466 | K116: 0.3325 | L116: 0.6125 | M116: 0.795 | N116: 271.49 | O116: 2.8425
B117: 2 - ой ЗАВТРАК
A118: Сок фруктовый | D118: 100 | E118: 100 | F118: 100 | G118: 0.50 | I118: 10.60 | J118: 44 | K118: 0.01 | L118: 0.02 | M118: 2.00 | N118: 7.00 | O118: 1.40
A119: Итого: | G119: =SUM(G118) -> 0.50 | I119: =SUM(I118) -> 10.60 | J119: 44 | K119: 0.01 | L119: 0.02 | M119: 2.00 | N119: 7.00 | O119: 1.40
B120: ОБЕД
A121: Борщ со свежей капустой, картофелем, с | D121: 250/12,5/10 | G121: 5.21 | H121: 8.28 | I121: 12.1 | J121: 139 | K121: 0.05 | L121: 0.06 | M121: 8.15 | N121: 40.2 | O121: 1.27
A122: говядиной,со сметаной
B123: Говядина мякоть | E123: 20 | F123: 20
B124: Капуста свежая | E124: 50.0 | F124: 40.0
B125: Картофель | E125: 29 | F125: 20.0
B126: Морковь | E126: 20.0 | F126: 15.0
B127: Лук репчатый | E127: 17.85 | F127: 15.0
B128: Свекла | E128: 54.4 | F128: 40.0
B129: Сахар | E129: 2 | F129: 2.0
B130: Томатная паста | E130: 1.0 | F130: 1.0
B131: Масло растительное | E131: 4.0 | F131: 4.0
B132: Сметана | E132: 10 | F132: 10.0
B133: Соль | E133: 1.5 | F133: 1.5
B134: Вода | E134: 200 | F134: 200.0
A135: Биточки куриные "Солнышко" | D135: 80 | G135: 16.2 | H135: 19.9 | I135: 10.2 | J135: 286 | K135: 0.07 | L135: 0.17 | M135: 0.6 | N135: 21.2 | O135: 1.9
B136: Цыплята бройлеры | E136: 100.0 | F136: 65
B137: Морковь | E137: 26.6 | F137: 20.0
B138: Лук репчатый | E138: 13.6 | F138: 11.4
B139: Яйцо д.1 | E139: 3.0 | F139: 3.0
B140: соль | E140: 1.2 | F140: 1.2
B141: Мука пшеничная | E141: 2.5 | F141: 2.5
B142: Масло растительное | E142: 4.8 | F142: 4.8
A143: Пюре картофельное | D143: 180 | G143: 3.78 | H143: 5.94 | I143: 24.30 | J143: 196 | K143: 0.18 | L143: 0.20 | M143: 12.60 | N143: 42.84 | O143: 1.26
B144: Картофель | E144: 220 | F144: 154
B145: Молоко | E145: 30 | F145: 30
B146: Масло сливочное | E146: 6 | F146: 6
B147: Соль | E147: 1.5 | F147: 1.5
A148: Огурцы солёные ( порциями) | D148: 30 | G148: 0.24 | H148: 0.03 | I148: 0.51 | J148: 20 | K148: 0.03 | L148: 0.03 | M148: 1.50 | N148: 4.20 | O148: 0.20
B149: Огурцы солёные | E149: 54.6 | F149: 30
A151: Кисель | D151: 180 | I151: 9 | J151: 107 | N151: 0.18 | O151: 0.03
B152: Кисель | E152: 18.0 | F152: 18.0
B153: Сахар | E153: 10.0 | F153: 10.0
A154: Хлеб белый 1с | D154: 20 | E154: 20 | F154: 20 | G154: 1.6 | H154: 0.6 | I154: 10.0 | J154: 49 | K154: 0.024 | L154: 0.015 | M154: 0 | N154: 4
A155: Хлеб Сельский | D155: 50 | E155: 50 | F155: 50 | G155: 3.3 | H155: 0.6 | I155: 17.5 | J155: 102 | K155: 0.06 | L155: 0.04 | N155: 11.7 | O155: 1.3
A156: Итого: | G156: =SUM(G121:G155) -> 30.28 | H156: 35.35 | I156: 83.56 | J156: 899 | K156: 0.4 | L156: 0.5 | M156: 22.9 | N156: 124.32 | O156: 5.96
B157: ПОЛДНИК
A158: Молоко кипяченое | D158: 150 | E158: 158 | F158: 150 | G158: 4.35 | H158: 3.8 | I158: 7.2 | J158: 81 | K158: 0.06 | L158: 0.23 | M158: 1.95 | N158: 180 | O158: 0.15
A159: Итого: | G159: =SUM(G158:G158) -> 4.35 | H159: 3.8 | I159: 7.2 | J159: 81 | K159: 0.06 | L159: 0.23 | M159: 1.95 | N159: 180 | O159: 0.15
B160: УЖИН
A161: Фрукты свежие | D161: 100 | E161: 114 | F161: 100 | G161: 0.40 | H161: 0.40 | I161: 9.80 | J161: 47 | K161: 0.03 | L161: 0.04 | M161: 10.00 | N161: 16.00 | O161: 2.20
A162: Запеканка вермишелевая с морковью,сыром | D162: 180 | G162: 9.18 | H162: 10.54 | I162: 32.82 | J162: 206 | K162: 0.07 | L162: 0.05 | M162: 0.00 | N162: 12.42 | O162: 1.27
B163: Макаронные изделия | E163: 52.5 | F163: 52.5
B164: Морковь | E164: 39.9 | F164: 30
B165: Масло растительное | E165: 3 | F165: 3
B166: Яйцо д.1 | E166: 2 | F166: 2
B167: Сыр | E167: 14.28 | F167: 14
B168: Масло сливочное | E168: 5 | F168: 5
B169: Соль | E169: 1.5 | F169: 1.5
A170: Чай с сахаром | D170: 180 | I170: 10 | J170: 40 | N170: 0.3 | O170: 0.03
B171: Заварка | E171: 0.6 | F171: 0.6
B172: Сахар | E172: 10 | F172: 10
A173: Хлеб белый 1с | D173: 20 | E173: 20 | F173: 20 | G173: 1.6 | H173: 0.6 | I173: 10.0 | J173: 49 | K173: 0.024 | L173: 0.015 | M173: 0 | N173: 4
A174: Итого: | G174: =SUM(G161:G173) -> 11.1 | H174: 11.5 | I174: 62.6 | J174: 342 | K174: 0.1 | L174: 0.1 | M174: 10.00 | N174: 32.72 | O174: 3.50
A176: Итого: | G176: =SUM(G175:G175) -> 0.0 | H176: 0.0 | I176: 0.0 | J176: 0 | K176: 0.0 | L176: 0.0 | M176: 0.0 | N176: 0.0 | O176: 0.0
A178: ВСЕГО: | G178: =SUM(G176,G174,G159,G156,G119,G116) -> 62.7 | H178: 70.4 | I178: 222.8 | J178: 1832 | K178: 0.9 | L178: 1.5 | M178: 37.6 | N178: 615.5 | O178: 13.9
A181: День 3 - ий
A182: Наименование блюд и | D182: Масса | E182: Кол - во | F182: Кол - во | G182: Пищевые вещества | J182: Энергетическая | K182: Витамины | N182: Минеральные
A183: продуктов | D183: порции | E183: (в гр ) | F183: (в гр ) | J183: ценность | L183: мг | N183: вещества
E184: брутто | F184: нетто | G184: белки | H184: жиры | I184: угл-ды | J184: Ккал | K184: В1 | L184: В2 | M184: С | N184: Са | O184: Fe
B185: ЗАВТРАК
A186: Каша ячневая молочная с маслом | D186: 205 | G186: 4.63 | H186: 6.9 | I186: 20.15 | J186: 188 | K186: 0.175 | L186: 0.125 | M186: 0.225 | N186: 138.625 | O186: 1.1625
B187: Крупа ячневая | E187: 30 | F187: 30
B188: Молоко | E188: 160 | F188: 160
B189: Сахар | E189: 5 | F189: 5
B190: Соль | E190: 1 | F190: 1
B191: Масло сливочное | E191: 5 | F191: 5
A192: Кофейный напиток с молоком | D192: 180 | G192: 1.46 | H192: 1.61 | I192: 14.33 | J192: 78 | K192: 0.01 | L192: 0.14 | M192: 0.23 | N192: 48 | O192: 0.09
B193: Кофейный напиток | E193: 1.2 | F193: 1.2
B194: Сахар | E194: 12 | F194: 12
B195: Молоко | E195: 90 | F195: 90
B196: Вода | E196: 100 | F196: 100
A197: Бутерброд с маслом сливочным | D197: 40/5 | G197: 3.12 | H197: 5.4 | I197: 20.0 | J197: 135 | K197: 0.04 | L197: 0.03 | M197: 0 | N197: 8.5
B198: Батон нарезной | E198: 40 | F198: 40
B199: Масло сливочное | E199: 5 | F199: 5
A200: Итого: | G200: =SUM(G186:G199) -> 9.2 | H200: 13.9 | I200: 54.5 | J200: 401 | K200: 0.2 | L200: 0.3 | M200: 0.5 | N200: 195.1 | O200: 1.3
B201: 2 - ой ЗАВТРАК
A202: Сок фруктовый | D202: 100 | E202: 100 | F202: 100 | G202: 0.50 | I202: 10.60 | J202: 44 | K202: 0.01 | L202: 0.02 | M202: 2.00 | N202: 7.00 | O202: 1.40
A203: Итого: | G203: =SUM(G202:G202) -> 0.5 | H203: 0 | I203: 10.6 | J203: 44 | K203: 0.01 | L203: 0.02 | M203: 2 | N203: 7 | O203: 1.4
B204: ОБЕД
A205: Рассольник ленинградский с цыплятами, со | D205: 250/16/10 | G205: 4.91 | H205: 7.12 | I205: 15.76 | J205: 149 | K205: 0.09 | L205: 1.2 | M205: 6.9 | N205: 26.27 | O205: 1.17
A206: сметаной
B207: Цыплята | E207: 32.3 | F207: 21
B208: Картофель | E208: 65.8 | F208: 46.0
B209: Крупа перловая | E209: 10.0 | F209: 10.0
B210: Морковь | E210: 20.0 | F210: 15.0
B211: Лук репчатый | E211: 17.85 | F211: 15
B212: Масло растительное | E212: 4.0 | F212: 4.0
B213: Огурцы соленые | E213: 36.4 | F213: 20
B214: Сметана | E214: 10 | F214: 10
B215: Соль | E215: 1 | F215: 1
... 669 more rows

Sheet Лист2

Sheet Лист3
